Cogmind - Beta 9 @@@ ROGUE MODE // 2019.10.25 @ 23:12:02 Player: Dendrocnid Result: Self-destructed Performance ------------- Evolutions (1) 500 Regions Visited (2) 400 Robots Destroyed (42) 210 Value Destroyed (1183) 1183 Prototype IDs (1) 20 Alien Tech Used (0) 0 Bonus (0) 0 TOTAL SCORE: 2313 Bonus ------- None Cogmind --------- Core Integrity 125/400 Matter 280/300 Energy 280/280 System Corruption 2% Temperature Cool (0) Location -9/Materials Parts ------- Power (1) Heavy Ion Engine Propulsion (2) Utility (4) Heat Sink High-capacity Storage Unit Targeting Computer Improved Targeting Computer Weapon (2) Inventory (12) Improved Ion Engine Light Treads Aluminum Leg Aluminum Leg Medium Matter Pod (100) Light Armor Plating Datajack Peak State ------------ Power Heavy Ion Engine Propulsion Light Treads Light Treads Utility High-capacity Storage Unit Targeting Computer Improved Targeting Computer Core Shielding Weapon Heavy Assault Rifle Heavy Assault Rifle Inventory Improved Ion Engine Heat Sink Medium Matter Pod Medium Laser Grenade Launcher Datajack [Rating: 14] Favorites ----------- Power Ion Engine Engine Ion Engine Power Core Light Nuclear Core Propulsion Compact Wheel Treads Light Treads Leg Improved Aluminum Leg Wheel Compact Wheel Utility Core Shielding Device Heat Sink Storage High-capacity Storage Unit Processor Targeting Computer Protection Core Shielding Weapon Heavy Assault Rifle Energy Gun Small Laser Ballistic Gun Heavy Assault Rifle Launcher Grenade Launcher Build | -11 -10 -9 ------- Run | Scr Mat Mat Slots Evolved 2 | . . 2 Power . | . . . Propulsion . | . . . Utility 2 | . . 2 Weapon . | . . . Parts Attached 37 | 6 14 17 Power 5 | 1 3 1 Engine 4 | 1 2 1 Core 1 | . 1 . Reactor . | . . . Propulsion 11 | 2 3 6 Treads 4 | . . 4 Leg 2 | . . 2 Wheel 5 | 2 3 . Hover . | . . . Flight . | . . . Utility 9 | 1 4 4 Device 1 | . . 1 Storage 3 | 1 2 . Processor 3 | . . 3 Hackware . | . . . Protection 2 | . 2 . Artifact . | . . . Weapon 12 | 2 4 6 Energy Gun 4 | 1 1 2 Energy Cannon . | . . . Ballistic Gun 7 | 1 3 3 Ballistic Cannon . | . . . Launcher 1 | . . 1 Special Weapon . | . . . Impact Weapon . | . . . Slashing Weapon . | . . . Piercing Weapon . | . . . Special Melee Weapon . | . . . Unidentified Prototypes 1 | . . 1 Parts Lost 21 | . 6 15 Power 2 | . 1 1 Propulsion 9 | . 3 6 Utility 1 | . . 1 Weapon 9 | . 2 7 Highest Loss Streak 4 | . 3 4 Average Slot Usage (%) 95 | . 97 92 Engine 9 | . 7 10 Core 3 | . 6 . Treads 4 | . . 9 Wheel 17 | . 26 8 Device 1 | . . 2 Storage 12 | . 14 11 Processor 9 | . . 20 Protection 11 | . 13 7 Energy Gun 1 | . 2 1 Ballistic Gun 21 | . 25 16 Naked Turns . | . . . Heaviest Build 47 | 10 44 47 Greatest Support 40 | 26 32 40 Greatest Overweight (x) 14 | . 2 14 Average Overweight (x) . | . . 1 Largest Inventory Capacity 14 | 6 14 12 Average Capacity 10 | 5 9 12 Most Carried 9 | 2 9 8 Average Carried 5 | . 6 6 Final Capacity 12 | . . 12 Final Carried 7 | . . 7 Class Distribution -------------------- 94% | Mutant 5% | Scavenger-Mutant Dominant Class ---------------- Mutant | -10/Materials Mutant | -9/Materials Resources | -11 -10 -9 ----------- Run | Scr Mat Mat Matter Collected 1219 | 183 634 402 Remotely . | . . . Salvage Created 1540 | . 773 767 Parts 95 | . 44 51 Haulers Intercepted 1 | . 1 . Recyclers Shooed . | . . . Parts Field Recycled . | . . . Retrieved Matter . | . . . Parts Self-Destructed . | . . . Prevented . | . . . Kills | -11 -10 -9 ------- Run | Scr Mat Mat Combat Hostiles Destroyed 35 | . 17 18 Guns 29 | . 17 12 AOE 6 | . . 6 Classes Destroyed 11 | . 6 5 Worker 1 | . . 1 Builder 1 | . 1 . Hauler 1 | . 1 . Recycler 2 | . 1 1 Operator 1 | . . 1 Watcher 1 | . 1 . Swarmer 6 | . 6 . Grunt 24 | . 11 13 Brawler 2 | . . 2 Duelist 1 | . . 1 Sentry 2 | . . 2 Best Kill Streak 5 | . 3 5 Combat Bots Only 4 | . 3 4 Max Kills in Single Turn 2 | . 1 2 Gunslinging . | . . . Exploded 2 | . . 2 Melee . | . . . Uniques/NPCs Destroyed . | . . . Combat | -11 -10 -9 -------- Run | Scr Mat Mat Damage Taken 1934 | . 791 1143 Core 396 | . 121 275 Absorbed by Shields . | . . . Core Remaining (%) 75 | 100 51 . Volleys Fired 127 | . 68 59 Largest 2 | . 2 2 Hottest 73 | . 60 73 Shots Fired 229 | . 132 97 Gun 221 | . 132 89 Cannon . | . . . Launcher 8 | . . 8 Special . | . . . Kinetic 198 | . 120 78 Thermal 23 | . 12 11 Explosive 8 | . . 8 Electromagnetic . | . . . Robot Hit Streak 29 | . 13 29 Robot Miss Streak 3 | . 3 2 Penetration Max . | . . . Secondary Targets 1 | . . 1 Max Gunslinging Chain 1 | . . 1 Shots Hit Robots 163 | . 81 82 Core Hits 65 | . 29 36 Critical Hits 3 | . 1 2 Critical Kills 1 | . . 1 Critical Parts Destroyed 1 | . 1 . Melee Attacks . | . . . Impact . | . . . Slashing . | . . . Piercing . | . . . Sneak Attacks . | . . . Combat Hostiles . | . . . Follow-up Attacks . | . . . Damage Inflicted 2784 | . 1085 1699 Guns 2134 | . 1084 1050 Cannons . | . . . Explosions 645 | . . 645 Melee . | . . . Ramming 5 | . 1 4 Kinetic 1973 | . 1000 973 Thermal 161 | . 84 77 Explosive 645 | . . 645 Electromagnetic . | . . . Impact . | . . . Slashing . | . . . Piercing . | . . . Highest Corruption 2 | . . 2 Average Corruption 2 | . . 2 Corruption Purged . | . . . Overload Shots . | . . . Overflow Damage 11 | . . 11 Projectiles . | . . . Explosions 11 | . . 11 Melee . | . . . Knockbacks . | . . . Impact . | . . . Kinetic . | . . . Secondary . | . . . Self-Inflicted Damage 61 | . . 61 Shots 3 | . . 3 Rammed 2 | . 1 1 Targets Rammed 2 | . 1 1 Kicked . | . . . Crushed . | . . . Highest Temperature 60 | . 60 1 Average Temperature 17 | . 18 1 Received Heat Transfer 771 | . 339 432 Siege Activations . | . . . Robots Corrupted . | . . . Combat Hostiles . | . . . Parts Fried . | . . . Impact Corruptions . | . . . Robots Melted . | . . . Combat Hostiles . | . . . Parts Melted . | . . . Heat Transferred 422 | . 200 222 Parts Sabotaged . | . . . Parts Stolen . | . . . Parts Stripped . | . . . Power Chain Reactions . | . . . Missiles Intercepted . | . . . Alert | -11 -10 -9 ------- Run | Scr Mat Mat Peak Influence 338 | . 307 338 Average Influence 147 | . 116 191 Maximum Alert Level 1 | . 1 1 Low Security (%) 75 | . . . Level 1 24 | . . . Level 2 . | . . . Level 3 . | . . . Level 4 . | . . . Level 5 . | . . . High Security . | . . . Max Security . | . . . Squads Dispatched 9 | . 3 6 Investigation . | . . . Extermination . | . . . Reinforcement 9 | . 3 6 Assault . | . . . Garrison . | . . . Intercept . | . . . Construction Impeded 1 | . . 1 Haulers Reinforced . | . . . Stealth | -11 -10 -9 --------- Run | Scr Mat Mat Distress Signals 6 | . 3 3 Communications Jammed . | . . . Distress Signals . | . . . Times Spotted 70 | . 35 35 Peak Tracking Total 6 | . 6 6 Tactical Retreats 9 | . 7 2 Traps | -11 -10 -9 ------- Run | Scr Mat Mat Traps Triggered 2 | . 1 1 Indirectly . | . . . Trap Hack Attempts . | . . . Triggered . | . . . Disarmed . | . . . Reprogrammed . | . . . Reused . | . . . Traps Extracted . | . . . Installed . | . . . Triggered . | . . . Machines | -11 -10 -9 ---------- Run | Scr Mat Mat Machines Disabled 2 | . . 2 Max in Single Turn 1 | . . 1 Machines Sabotaged . | . . . Garrisons Compromised . | . . . Overloaded Fab Kills . | . . . Fab Network Shutdowns . | . . . Hacking | -11 -10 -9 --------- Run | Scr Mat Mat Machines Accessed 2 | . 1 1 Terminals 1 | . 1 . Fabricators . | . . . Repair Stations 1 | . . 1 Recycling Units . | . . . Scanalyzers . | . . . Garrison Access . | . . . Total Hacks 4 | . 2 2 Successful 1 | . . 1 Failed 3 | . 2 1 Catastrophic 2 | . 2 . Database Lockouts . | . . . Manual 2 | . 2 . Terminals 2 | . 2 . Fabricators . | . . . Repair Stations 2 | . . 2 Recycling Units . | . . . Scanalyzers . | . . . Garrison Access . | . . . Terminal Hacks . | . . . Fabricator Hacks . | . . . Repair Station Hacks 1 | . . 1 Scan Component 1 | . . 1 Recycling Unit Hacks . | . . . Scanalyzer . | . . . Garrison Access Hacks . | . . . Unauthorized Hacks . | . . . Terminals . | . . . Fabricators . | . . . Repair Stations . | . . . Recycling Units . | . . . Scanalyzers . | . . . Garrison Access . | . . . Data Cores Recovered . | . . . Used . | . . . Hacking Detections 2 | . 1 1 Full Trace Events . | . . . Feedback Events . | . . . Feedback Blocked . | . . . Robot Schematics Acquired . | . . . Robots Built . | . . . Matter . | . . . Time . | . . . Total Robot Build Rating . | . . . Part Schematics Acquired . | . . . Parts Built . | . . . Matter . | . . . Time . | . . . Total Part Build Rating . | . . . Parts Repaired . | . . . Time . | . . . Parts Recycled . | . . . Recycled Matter . | . . . Retrieved Matter . | . . . Retrieved Components . | . . . Parts Scanalyzed . | . . . Part Schematics Acquired . | . . . Parts Damaged . | . . . Bothacking | -11 -10 -9 ------------ Run | Scr Mat Mat Used RIF Installer . | . . . Robots Hacked . | . . . Non-combat . | . . . Combat . | . . . Robot Hacks Applied . | . . . Relay Couplers Released . | . . . Robots Rewired . | . . . Allies Hacked . | . . . Hacks Repelled . | . . . Allies | -11 -10 -9 -------- Run | Scr Mat Mat Total Allies . | . . . Largest Group . | . . . Highest-Rated Group . | . . . Highest-Rated Ally . | . . . Total Orders . | . . . Ally Attacks . | . . . Total Damage . | . . . Kills . | . . . Allies Corrupted . | . . . Allies Melted . | . . . Intel | -11 -10 -9 ------- Run | Scr Mat Mat Robot Analysis Total . | . . . Derelict Logs Recovered . | . . . Drone Launches . | . . . Drone Recoveries . | . . . Exploration | -11 -10 -9 ------------- Run | Scr Mat Mat Turns Passed 1716 | 57 868 791 Spaces Moved 1001 | 54 555 392 Core 9 | 3 . 6 Treads 145 | . . 145 Legs 37 | . . 37 Wheels 810 | 51 555 204 Hover . | . . . Flight . | . . . Fastest Speed 50 | 50 90 110 Average Speed 119 | 86 100 150 Slowest Speed 750 | 90 120 750 Overloaded Moves . | . . . Propulsion Burnouts . | . . . Robots Hopped . | . . . Cave-ins Triggered . | . . . Exploration Rate (%) 37 | 4 79 29 Regions Visited 2 Branch Regions . Pre-discovered Areas . | . . . Known Exits Taken . | . . . Unknown Exits Taken 2 | 1 1 . Scrap Searched . | . . . Spaces Dug . | . . . Terrain Destroyed 37 | . . 37 Melee . | . . . Projectile . | . . . AOE 37 | . . 37 Actions | -11 -10 -9 --------- Run | Scr Mat Mat Total 1284 | 61 734 489 Wait 86 | . 72 14 Move 999 | 53 554 392 Hop . | . . . Pick Up 24 | 2 16 6 Fast Attach 20 | 6 5 9 Attach 12 | . 5 7 Detach . | . . . Swap 5 | . 4 1 Drop 9 | . 9 . Fire 127 | . 68 59 Melee . | . . . Ram 1 | . 1 . Kick 1 | . . 1 Crush . | . . . Escape Stasis . | . . . Rewire . | . . . Trap . | . . . Miscellaneous . | . . . Route ------- -11/Scrapyard -10/Materials (discovered 3 exits: *Mat x3) -9/Materials History --------- Turn | Location | Event 21 | -11/Scrapyard | Discovered new exit (range 15) 58 | -11/Scrapyard | Entered Materials 317 | -10/Materials | Build established: Mutant 329 | -10/Materials | Discovered new exit (range 16) 546 | -10/Materials | Discovered new exit (range 16) 795 | -10/Materials | Lost 3 parts (1p1n1w) 840 | -10/Materials | Discovered new exit (range 10) 926 | -10/Materials | Entered another Materials area 926 | -9/Materials | Evolved 2 slots: Utility x2 1282 | -9/Materials | Lost 4 parts (1p2n1w) 1650 | -9/Materials | Lost 4 parts (2n2w) 1679 | -9/Materials | Core integrity fell below 50% 1717 | -9/Materials | Self-destructed Last Messages --------------- 01676_ K-01 Serf cleans the Terminal. 01676_ K-01 Serf collects debris. 01676_ Grenade Launcher destroyed. 01679_ K-01 Serf collects debris. 01681_ K-01 Serf cleans the Terminal. 01682_ Acquired Sml. Laser. 01682_ K-01 Serf collects debris. 01684_ Imp. Aluminum Leg destroyed. 01686_ K-01 Serf collects debris. 01690_ Sml. Laser destroyed. 01693_ K-01 Serf collects debris. 01700_ Slammed into G-34 Mercenary. 01700_ Destabilizing: System corrupted (+2). 01701_ K-01 Serf collects debris. 01704_ K-01 Serf cleans the Terminal. 01706_ K-01 Serf collects debris. 01709_ C-30 ARC bursts open, deploying its payload. 01709_ G-47 Trooper unfolds itself. 01711_ K-01 Serf collects debris. 01716_ Imp. Aluminum Leg destroyed. Map ----- +----------------------------------------------------+ | ?????????????????????????????????????????????????? | | ?????????????????????????????????????????????????? | | ?????????? ??????????????????????????????????????? | | ?????????# ??????????????????????????????????????? | | ?????????# ??????????????????????????????????????? | | ?????????# ??????????????????????????????????????? | | ?????????# #####?????????????????????????????????? | | ?????????# ##????#####???????????????????????? | | ?????????# "" ????? #???????????????????????? | | ?????????# T ????? #???????????????????????? | | ?????????# ?????? #???????????????????????? | | ?????????? ??????# #???????????????????????? | | ########### #??????# #???????????????????????? | | # # #??????# #???????????????????????? | | # # #??##### #???????????????????????? | | # + #### # #???????????????????????? | | # * =%# k# ###?????????????????????? | | # # ! "T g [ # #?????????????????????? | | # ""T"" ** Yg #??????????????????????? | | # """"" # = ##??????????????????????? | | # # #??????????????????????? | | ######## # ###############?????????? | | ## ## ## # ##### ????????? | | ####???# ????????? | | #??????# ????????? | | % #??????####@######### ????????? | | ### # # # ##???????? ?????????????????????? | | ??# #????????# #???????????????????? | | ??# #????????# """ #???????????????????? | | ??# #????????# """ #???????????????????? | | ??# " #????????# """ #???????????????????? | | ??# """"" ##????????# #???????????????????? | | ??# #?????????########???????????????????? | | ??# #????????????????????????????????????? | | ??# #????????????????????????????????????? | | ??###########????????????????????????????????????? | | | | | | | | | | | | | | | | | | | | | | | | | | | | | +----------------------------------------------------+ Best States ------------- Heat Dissipation 38 Energy Generation 14 Energy Capacity 280 Matter Stores 300 Matter Capacity 300 Sight Range 16 Terrain Scan Density 10 Core Shielding 20 Evasion (%) 44 Targeting Accuracy 11 Recoil Reduction 2 Item Schematics ----------------- None Robot Schematics ------------------ None Fabricated ------------ Nothing Alien Tech Used ----------------- None Achievements -------------- None Challenges ------------ None Game ------ Seed NuclearTrackerTreads Manual? 0 Play Time 00:16:44 Cumulative 84.8 hours Start 2019.10.25 @ 22:55:45 End 2019.10.25 @ 23:12:02 Sessions 1 Manual Loads 0 Difficulty Rogue Special Mode None Game No. 146 Rogue 146 Adventurer 0 Explorer 0 Win Type - Total 0 Types 0/0/0/0/0/0/0 Lore% 27 Gallery% 47 Achievement% 36 Wizard Run 0 Options --------- ASCII 0 Keyboard 0 Movement Mouse Keybinds 0 Fullscreen 1 Font 14/SmallcapsGlow Map View 84x54 Tactical HUD 1 Map Filters NONE Filters NONE Steam 1 RUN: 286cb1ad-53b7-44cf-bec8-69376b4359e6